Workbook

Sheet Forside
A1: VERSJONSNUMMER | T1: =(YEAR(NOW())-1) -> 2021 | V1: Grunnlag for beregning av avsetning til garantiordningen pr. 31. desember | AI1: =(YEAR(NOW())) -> 2022 | BA1: 2 | BB1: =B11 -> 20200131 | BC1: =A2 -> 300 | BD1: =D9 -> 0 | BE1: =D11 -> 2021 | BF1: 12 | BG1: 10 | BH1: Forside | BI1: =IF(B15="Konsolidert",2,IF(B15="Ikke-Konsolidert",1,IF(B15="",-1))) -> -1 | BJ1: 0 | CA1: BA | CB1: 999999001 | CC1: BB | CD1: =+CB1+1 -> 999999002 | CE1: BC | CF1: =+CD1+1 -> 999999003 | CG1: BD | CH1: =+CF1+1 -> 999999004 | CI1: BE | CJ1: =+CH1+1 -> 999999005 | CK1: BF | CL1: =+CJ1+1 -> 999999006 | CM1: BG | CN1: =+CL1+1 -> 999999007 | CO1: BH | CP1: =+CN1+1 -> 999999008 | CQ1: BI | CR1: =+CP1+1 -> 999999009 | CS1: BJ | CT1: =+CR1+1 -> 999999010
A2: 300 | T2: =(YEAR(NOW())-2) -> 2020 | V2: Øvre grense for avsetning til garantiordningen pr. 31. desember | AI2: =(YEAR(NOW())-1) -> 2021 | BA2: Skjema-ID | BB2: versjonNr | BC2: VersjonsID | BD2: orgnr | BE2: ÅR | BF2: mnd | BG2: Antall datakolonner | BH2: Arknavn | BI2: konsIkkeKons | BJ2: SA/IRB
T3: =(YEAR(NOW())-3) -> 2019 | V3: Avsetning til garantiordningen pr. 31. desember
V4: Rapporteres hvis avsetningen pr. 31. desember
B5: Garantiordningen for skadeforsikring | V5: er lavere enn øvre grense for avsetningen: | BG5: i dokumentet
BB6: Dette er skjemaversjonens CREATION DATE
V7: Avsetning til garantiordningen pr. 31. desember
B8: FORETAKETS NAVN: | D8: ORGANISASJONSNUMMER: | V8: Endring i avsetning til garantiordningen i løpet av
V9: Kontroll (1 prosent av opptjente bruttopremier for direkte forsikringer i | CA9: B | CB9: 295
B10: EXCELMAL GYLDIG FRA: | C10: SISTE DAG I RAPPORTERINGSPERIODEN: | D10: RAPPORTERINGSÅR: | V10: NUF
B11: 20200131 | C11: =D11&"-"&12&"-"&31 -> 2021-12-31 | D11: 2021 | V11: Grunnlag for beregning av filialens forpliktelser overfor garantiordningen pr. 31. desember | CA11: B | CB11: 296 | CC11: D | CD11: 297 | CE11: E | CF11: 298
B12: KONSOLIDERT ELLER IKKE KONSOLIDERT | D12: Ikke konsolidert | V12: Filialens forpliktelser overfor garantiordningen pr. 31. desember
B13: Hvilken type foretak? | D13: Norsk forsikringsforetak | V13: Filialens forpliktelser overfor garantiordningen pr. 31. desember
V15: Forfalte bruttopremier i
V17: Total forvaltningskapital pr. 31. desember

Sheet Norsk forsikringsforetak
A4: Garantiordningen for skadeforsikring - Norsk forsikringsforetak
A6: Bransjer - direkte forsikringer | C6: Opptjente bruttopremier for direkte forsikringer
B7: Rapporter i 1000 kroner | C7: der risikoen består i Norge
A8: FORT-kode | B8: Bransjenavn | C8: =E8-2 -> 2019 | D8: =E8-1 -> 2020 | E8: =Forside!D11 -> 2021 | F8: Sum
A9: 1010 | B9: Forsikring mot utgifter til medisinsk behandling | F9: =C9+D9+E9 -> 0
A10: 1020 | B10: Forsikring mot inntektstap | F10: =C10+D10+E10 -> 0
A11: 1030 | B11: Yrkesskadeforsikring | F11: 0
A12: 1040 | B12: Motorvognforsikring - trafikk | F12: 0
A13: 1050 | B13: Motorvognforsikring - øvrig | F13: 0
B14: - Bruttopremier for direkte forsikringer som ikke dekkes av ordningen | F14: 0
A15: 1060 | B15: Sjøforsikring, transportforsikring og luftfartforsikring | F15: 0
B16: - Bruttopremier for direkte forsikringer som ikke dekkes av ordningen | F16: 0
A17: 1070 | B17: Forsikring mot brann og annen skade på eiendom | F17: 0
B18: - Bruttopremier for direkte forsikringer som ikke dekkes av ordningen | F18: 0
A19: 1080 | B19: Ansvarsforsikring | F19: 0
B20: - Bruttopremier for direkte forsikringer som ikke dekkes av ordningen | F20: 0
A21: 1090 | B21: Kreditt- og kausjonsforsikring
A22: 1100 | B22: Rettshjelpforsikring | F22: =C22+D22+E22 -> 0
A23: 1110 | B23: Assistanseforsikring | F23: 0
A24: 1120 | B24: Forsikring mot diverse økonomiske tap | F24: 0
B25: - Bruttopremier for direkte forsikringer som ikke dekkes av ordningen | F25: 0
B26: Sum | C26: =SUM(C9:C20)+SUM(C22:C25) -> 0 | D26: =SUM(D9:D20)+SUM(D22:D25) -> 0 | E26: =SUM(E9:E20)+SUM(E22:E25) -> 0
B28: =Forside!V1 & " " & E8 -> Grunnlag for beregning av avsetning til garantiordningen pr. 31. desember 2021 | F28: =SUM(F9:F20)+SUM(F22:F25) -> 0
B29: =Forside!V2 & " " & E8 -> Øvre grense for avsetning til garantiordningen pr. 31. desember 2021 | F29: =0.015*F28 -> 0
B30: =Forside!V3 & " " & E8 -> Avsetning til garantiordningen pr. 31. desember 2021
B32: =Forside!V4 & "" & E8 & " " &Forside!V5 -> Rapporteres hvis avsetningen pr. 31. desember 2021 er lavere enn øvre grense for avsetningen:
B33: =Forside!V7 & " " &D8 -> Avsetning til garantiordningen pr. 31. desember 2020
B34: =Forside!V8 & " " &E8 -> Endring i avsetning til garantiordningen i løpet av 2021 | F34: =IF(F33<>"",(F30-F33),"") -> 
B35: =Forside!V9 & " " &E8& ")" -> Kontroll (1 prosent av opptjente bruttopremier for direkte forsikringer i 2021) | F35: =IF(F33<>"",(0.01*E26),"") -> 

Sheet Filial-NUF (hidden)
A4: Garantiordningen for skadeforsikring - Norsk utenlandsk filial (NUF)
A6: Bransjer - direkte forsikringer | C6: Opptjente bruttopremier for direkte forsikringer
B7: Rapporter i 1000 kroner | C7: der risikoen består i Norge
A8: FORT-kode | B8: Bransjenavn | C8: =D8-1 -> 2019 | D8: =E8-1 -> 2020 | E8: =Forside!D11 -> 2021 | F8: Sum
A9: 1010 | B9: Forsikring mot utgifter til medisinsk behandling | F9: =C9+D9+E9 -> 0
A10: 1020 | B10: Forsikring mot inntektstap | F10: =C10+D10+E10 -> 0
A11: 1030 | B11: Yrkesskadeforsikring | F11: 0
A12: 1040 | B12: Motorvognforsikring - trafikk | F12: 0
A13: 1050 | B13: Motorvognforsikring - øvrig | F13: 0
B14: - Bruttopremier for direkte forsikringer som ikke dekkes av ordningen | F14: 0
A15: 1060 | B15: Sjøforsikring, transportforsikring og luftfartforsikring | F15: 0
B16: - Bruttopremier for direkte forsikringer som ikke dekkes av ordningen | F16: 0
A17: 1070 | B17: Forsikring mot brann og annen skade på eiendom | F17: 0
B18: - Bruttopremier for direkte forsikringer som ikke dekkes av ordningen | F18: 0
A19: 1080 | B19: Ansvarsforsikring | F19: 0
B20: - Bruttopremier for direkte forsikringer som ikke dekkes av ordningen | F20: 0
A21: 1090 | B21: Kreditt- og kausjonsforsikring
A22: 1100 | B22: Rettshjelpforsikring | F22: =C22+D22+E22 -> 0
A23: 1110 | B23: Assistanseforsikring | F23: 0
A24: 1120 | B24: Forsikring mot diverse økonomiske tap | F24: 0
B25: - Bruttopremier for direkte forsikringer som ikke dekkes av ordningen | F25: 0
B26: Sum | C26: =SUM(C9:C20)+SUM(C22:C25) -> 0 | D26: =SUM(D9:D20)+SUM(D22:D25) -> 0 | E26: =SUM(E9:E20)+SUM(E22:E25) -> 0
B28: =Forside!V11 & " "&E8 -> Grunnlag for beregning av filialens forpliktelser overfor garantiordningen pr. 31. desember 2021 | F28: =SUM(F9:F20)+SUM(F22:F25) -> 0
B29: =Forside!V12 & " "&E8 -> Filialens forpliktelser overfor garantiordningen pr. 31. desember 2021 | F29: =0.015*F28 -> 0
B31: =Forside!V13 & " "&D8 -> Filialens forpliktelser overfor garantiordningen pr. 31. desember 2020
B33: Memo:
B34: =Forside!V15 & " " & E8 -> Forfalte bruttopremier i 2021
B35: =Forside!V17 & " " & E8 -> Total forvaltningskapital pr. 31. desember 2021
